bitfinex/quotes_ETHUSD_20250625
["timestamp","ask_amount","ask_price","bid_price","bid_amount"]
[1750841953187,11.639,2436.6,2436.1,4.10482978]
[1750841953188,15.74308258,2436.6,2436.1,4.10482978]
[1750841953359,11.639,2436.6,2436.1,4.10482978]
[1750841954358,18.47443152,2436.6,2436.1,4.10490361]
[1750841954789,14.37025495,2436.6,2436.2,4.10473414]
[1750841956586,1.543,2436.8,2436.1,0.55]
[1750841956786,0.2166867,2437.8,2436.1,0.55]
[1750841956787,1.543,2437.4,2436.3,4.10458482]
[1750841956969,1.543,2437.4,2437.0,4.10340343]
[1750841957558,11.543,2437.4,2437.0,4.10340343]
[1750841957755,11.543,2437.4,2437.1,4.10321743]
[1750841957756,1.543,2437.4,2437.1,4.10321743]
[1750841957997,1.543,2437.4,2436.5,0.55]
[1750841958203,1.543,2437.4,2437.2,4.10294111]
[1750841958414,1.543,2437.4,2437.3,4.10290075]
[1750841958897,1.543,2437.4,2437.2,4.10298173]
[1750841959197,1.543,2437.4,2437.1,4.10315905]
[1750841960764,11.543,2437.4,2437.0,4.10334972]
[1750841961094,1.543,2437.4,2437.1,4.10322127]
[1750841961876,1.6319,2437.7,2437.3,4.10289476]
[1750841962198,1.6319,2437.7,2437.2,4.10298459]
[1750841962199,15.73420793,2437.7,2437.2,4.10298459]
[1750841962377,10.0,2437.5,2437.2,4.10298459]
[1750841962564,10.0,2437.5,2437.1,4.1032032]
[1750841962769,10.0,2437.5,2437.2,4.10306909]
[1750841963577,10.0,2437.5,2437.3,4.10280114]
[1750841963778,10.0,2437.5,2437.4,4.10273241]
[1750841963975,2.69919655,2437.6,2437.4,4.10273241]
[1750841964578,10.2166867,2437.8,2437.6,4.10237718]
[1750841964767,0.2166867,2437.8,2437.6,4.10239408]
[1750841965373,0.2166867,2437.8,2437.7,4.1022275]
[1750841966100,0.2166867,2437.8,2437.3,5.97684853]
[1750841966283,0.2166867,2437.8,2437.5,4.10254543]
[1750841966600,10.91804654,2437.7,2436.1,9.846]
[1750841966805,10.0,2437.5,2436.5,4.10409774]
[1750841966981,14.10257609,2437.5,2437.0,4.10332602]
[1750841967180,10.0,2437.5,2437.1,4.10323612]
[1750841967398,10.0,2437.6,2436.8,11.58774261]
[1750841967570,10.0,2437.6,2437.2,4.10297318]
[1750841967772,1.80368959,2437.8,2437.4,4.10262086]
[1750841968207,5.90583464,2437.8,2437.3,4.10288578]
[1750841968418,10.0,2437.7,2437.3,4.10284107]
[1750841968585,10.0,2437.7,2437.4,4.10272611]
[1750841968586,13.22568346,2437.7,2437.4,4.10272611]
[1750841969785,13.22568346,2437.7,2437.3,4.10281058]
[1750841969981,13.22568346,2437.7,2437.2,4.10298776]
[1750841970189,17.32794311,2437.7,2437.2,4.10298776]
[1750841970609,13.22568346,2437.7,2437.3,4.10289391]
[1750841970779,1.75445072,2437.6,2437.3,4.10289391]
[1750841971109,1.75445072,2437.6,2437.2,4.1029816]
[1750841971269,1.75445072,2437.6,2437.3,4.1028856]
[1750841973402,1.75445072,2437.6,2437.2,4.10300719]
[1750841975121,1.75445072,2437.6,2437.3,4.10289703]
[1750841975307,1.49801342,2437.5,2437.3,4.10289703]
[1750841975611,1.49801342,2437.5,2437.4,4.10273241]
[1750841975811,3.22568346,2437.7,2437.4,4.10273241]
[1750841976524,3.22568346,2437.7,2437.5,4.10254572]
[1750841976830,1.6351,2437.7,2437.4,4.1026459]
[1750841977487,1.6351,2437.7,2437.6,4.10239579]
[1750841977690,1.6351,2437.7,2437.5,4.10247063]
[1750841977891,0.2166867,2437.8,2437.5,0.55]
[1750841978121,0.2166867,2437.8,2437.7,4.6522275]
[1750841978319,0.2166867,2437.8,2437.7,5.77008983]
[1750841979520,0.2166867,2437.8,2437.7,4.1022275]
[1750841980525,0.2166867,2437.8,2437.5,1.874]
[1750841980725,0.2166867,2437.8,2437.6,4.10233296]
[1750841980896,0.2166867,2437.8,2437.5,4.10251031]
[1750841981620,0.2166867,2437.8,2437.4,4.10270429]
[1750841981621,0.2166867,2437.8,2437.4,4.10261623]
[1750841981816,0.2166867,2437.8,2437.5,4.10243652]
[1750841982026,0.2166867,2437.8,2437.6,4.1023801]
[1750841983100,0.2166867,2437.8,2437.7,4.1022275]
[1750841983299,0.2166867,2437.8,2437.7,5.47270623]
[1750841983523,0.2166867,2437.8,2437.7,12.41270623]
[1750841986802,0.2166867,2437.8,2437.7,11.86270623]
[1750841987630,1.6592,2439.3,2437.8,0.55]
[1750841987926,4.09899946,2439.7,2438.8,0.55]
[1750841988127,4.09899946,2439.7,2439.2,4.09967237]
[1750841988128,1.6126,2439.6,2439.2,4.09967237]
[1750841988426,14.09926769,2439.5,2439.0,4.10002291]
[1750841988625,1.6126,2439.6,2438.9,7.014]
[1750841989231,1.6126,2439.6,2439.5,4.09920065]
[1750841989428,1.6126,2439.6,2439.4,4.09930593]
[1750841990741,1.5686,2440.0,2439.5,4.09920065]
[1750841990944,3.56676457,2440.0,2439.0,0.55]
[1750841991142,5.66698497,2440.0,2439.4,4.09923916]
[1750841991719,4.09859708,2439.9,2439.4,4.09923916]
[1750841991920,10.0,2439.8,2439.3,4.64946566]
[1750841992447,10.0,2439.9,2439.4,4.09928423]
[1750841992743,11.56670167,2439.9,2439.4,4.09930517]
[1750841993045,15.66524432,2439.9,2439.4,4.09930517]
[1750841993965,11.56670167,2439.9,2439.5,4.09919449]
[1750841994312,11.56670167,2439.9,2439.4,4.09929304]
[1750841994515,15.66523916,2439.9,2439.4,4.09929304]
[1750841994717,1.72338392,2439.8,2439.4,4.09935147]
[1750841995250,1.72338392,2439.8,2439.5,4.09917181]
[1750841995650,11.56670167,2439.9,2439.1,4.09985385]
[1750841995852,11.56670167,2439.9,2439.5,4.09904711]
[1750841996652,1.5706,2439.8,2438.9,7.014]
[1750841996816,4.09886461,2439.7,2438.7,4.10039813]
[1750841997016,10.0,2439.7,2439.3,4.09948056]
[1750841997222,1.56693795,2439.6,2439.3,4.09948056]
[1750841997524,10.0,2439.7,2439.3,4.09948056]
[1750841998073,10.0,2439.7,2439.4,4.09936027]
[1750841998241,1.5706,2439.8,2439.5,4.09918628]
[1750841998923,1.5706,2439.8,2439.0,0.55]
[1750841999127,1.623,2440.0,2439.7,4.09870468]
[1750841999342,1.623,2440.0,2439.7,4.09878549]
[1750841999626,1.623,2440.0,2439.3,4.09953675]
[1750841999850,1.623,2440.0,2439.7,4.0987759]
[1750842000326,1.623,2440.0,2439.8,4.09867146]
[1750842000828,1.623,2440.0,2439.7,4.09879888]
[1750842001027,1.623,2440.0,2439.7,4.09877967]
[1750842001852,11.623,2440.0,2439.6,4.09889781]
[1750842002244,1.623,2440.0,2439.8,4.09860205]
[1750842002837,0.2166867,2440.2,2439.9,4.09852862]
[1750842003058,0.2166867,2440.2,2439.9,4.09851318]
[1750842003363,0.2166867,2440.2,2439.7,4.09877549]
[1750842003566,1.5767,2440.1,2439.4,6.47823088]
[1750842003755,11.20906481,2440.2,2439.3,11.07549219]
[1750842003756,1.5232,2439.8,2439.3,12.98952621]
[1750842003954,4.0989441,2439.7,2439.2,4.09961809]
[1750842004134,1.5232,2439.8,2439.0,1.914]
[1750842004334,4.09903262,2439.6,2438.8,4.10036261]
[1750842004544,4.09903262,2439.6,2438.6,1.914]
[1750842004545,1.5855,2439.3,2439.1,4.0997186]
[1750842004870,1.5855,2439.3,2438.6,1.914]
[1750842005090,4.09979193,2439.2,2438.7,4.8891]
[1750842005234,1.5855,2439.3,2438.7,8.98957194]
[1750842005436,5.68514322,2439.3,2438.8,4.10035904]
[1750842005636,4.09971461,2439.2,2438.5,4.10078727]
[1750842005867,4.09978423,2439.2,2438.7,4.10043626]
[1750842006436,1.5734,2439.3,2438.7,0.82011466]
[1750842006634,1.5734,2439.3,2438.8,4.10026851]
[1750842007470,1.57135166,2439.3,2438.9,4.10019854]
[1750842007766,10.0,2439.2,2438.8,4.10030524]
[1750842008269,11.57135166,2439.3,2438.9,4.1001841]
[1750842008666,11.57135166,2439.3,2438.3,15.85506626]
[1750842008873,11.57135166,2439.3,2438.8,4.10025266]
[1750842009380,11.57135166,2439.3,2438.9,4.10018068]
[1750842010180,15.67092671,2439.3,2438.8,4.10028958]
[1750842010479,1.5287,2439.1,2438.7,4.10054526]
[1750842010771,18.60140901,2439.1,2438.6,4.10062564]
[1750842011148,14.50150631,2439.1,2438.7,4.10041384]
[1750842011471,15.6285873,2439.1,2438.6,4.10063535]
[1750842011666,11.5287,2439.1,2438.7,4.10054298]
[1750842011978,15.62860905,2439.1,2438.6,4.10065198]
[1750842012176,11.5287,2439.1,2438.7,4.10052289]
[1750842012583,11.5287,2439.1,2438.8,4.10021391]
[1750842012759,1.5287,2439.1,2438.8,4.10021391]
[1750842012961,11.5287,2439.1,2438.8,4.10021391]
[1750842013481,1.6469,2438.8,2437.5,14.1025558]
[1750842013780,14.10062227,2438.7,2438.2,4.10129963]
[1750842014082,1.6469,2438.6,2438.2,4.10129963]
[1750842016282,5.74763766,2438.6,2438.1,4.10146451]
[1750842016581,14.10062227,2438.7,2437.6,11.60723819]
[1750842016582,1.6244,2438.3,2437.6,0.55]
[1750842016782,18.5774,2438.3,2438.0,4.10170162]
[1750842016949,18.5774,2438.3,2437.9,4.10181117]
[1750842018986,22.67862438,2438.3,2437.8,4.10196957]
[1750842019375,22.67862438,2438.3,2437.8,4.97738261]
[1750842020185,22.67862438,2438.3,2437.9,4.1018868]
[1750842020790,22.67862438,2438.3,2437.8,4.97739498]
[1750842021790,1.549,2438.1,2437.7,4.10211439]
[1750842021965,1.549,2438.1,2437.6,4.65231676]
[1750842022169,1.549,2437.8,2437.2,4.10296705]
[1750842022367,5.65113232,2437.8,2437.3,4.1028719]
[1750842022693,11.04526483,2437.7,2437.2,4.10300538]
[1750842023071,6.943,2437.7,2437.3,4.10279998]
[1750842023273,6.943,2437.7,2437.4,4.10261758]
[1750842023591,6.943,2437.7,2437.3,4.10280676]
[1750842023983,11.04523488,2437.7,2437.2,4.10300933]
[1750842024861,1.5596,2437.6,2437.3,4.10286976]
[1750842025066,1.5596,2437.6,2437.4,4.10270246]
[1750842025678,1.5596,2437.6,2437.0,4.10338244]
[1750842026020,1.5596,2437.6,2437.4,4.10257638]
[1750842027196,1.5596,2437.6,2437.1,4.10308643]
[1750842027411,5.66201879,2437.6,2436.9,0.55]
[1750842027714,1.5596,2437.6,2437.2,4.10305746]
[1750842028016,5.66200185,2437.6,2437.1,4.10315748]
[1750842028215,1.5596,2437.6,2437.2,4.10305126]
[1750842029102,4.10158514,2438.1,2436.9,1.95545959]
[1750842029103,1.5892,2438.2,2437.3,8.804]
[1750842029283,1.5892,2438.7,2438.3,4.10121806]
[1750842029486,1.5892,2438.7,2438.2,4.10132611]
[1750842029700,5.68976116,2438.7,2438.1,4.10146756]
[1750842029902,10.0,2438.6,2438.1,4.10146756]
[1750842030102,10.0,2438.6,2437.7,0.55]
[1750842030103,1.5892,2438.4,2437.7,0.55]
[1750842030411,11.5892,2438.4,2438.0,4.10161504]
[1750842031003,11.5892,2438.4,2438.1,4.10149868]
[1750842031582,11.5892,2438.4,2438.1,4.10155316]
[1750842033024,11.5892,2438.4,2438.2,4.10137899]
[1750842033186,11.5892,2438.4,2438.1,4.10142252]
[1750842033387,11.5892,2438.4,2438.2,4.10136617]
[1750842033694,18.5412,2438.4,2438.2,4.10136617]
[1750842034092,18.5412,2438.4,2438.1,4.10148585]
[1750842034288,11.5892,2438.4,2438.0,4.10164231]
[1750842034519,9.27234571,2438.8,2438.0,4.10164231]
[1750842034520,1.5377,2439.3,2438.7,4.10041329]
[1750842034686,10.0,2439.1,2438.7,4.10045402]
[1750842035025,1.5377,2439.0,2438.7,4.10051737]
[1750842036221,10.0,2438.9,2438.5,4.10077886]
[1750842036400,10.0,2438.9,2438.6,4.10062411]
[1750842037418,1.6119,2439.2,2438.6,0.55]
[1750842037723,7.026,2439.7,2438.7,0.55]
[1750842037886,10.86724,2439.6,2439.2,4.09962859]
[1750842038085,17.89424,2439.6,2439.2,4.09962859]
[1750842039412,14.09945226,2439.4,2438.7,4.10054537]
[1750842039720,4.09958669,2439.3,2438.8,4.10023392]
[1750842039922,10.0,2439.4,2438.8,4.10023392]
[1750842040220,7.02,2439.3,2438.9,4.10019873]
[1750842040389,7.02,2439.3,2438.8,4.10029026]
[1750842040590,7.02,2439.3,2438.9,4.10019178]
[1750842040786,7.02,2439.3,2439.0,4.1000387]
[1750842041519,7.02,2439.3,2438.9,4.10011802]
[1750842041696,16.46407177,2439.4,2438.9,4.10011802]
[1750842041897,7.015,2439.3,2439.0,4.10003228]
[1750842042306,17.012,2439.4,2439.0,4.10003228]
[1750842042721,17.012,2439.4,2439.0,4.09993713]
[1750842043016,1.20906481,2440.2,2438.5,0.55]
[1750842043017,1.5411,2440.0,2438.5,0.55]
[1750842043218,1.6657,2439.5,2439.2,4.09969373]
[1750842044019,5.76498559,2439.5,2438.9,4.10016371]
[1750842044725,4.0993727,2439.4,2439.0,4.10002692]
[1750842044925,15.76498838,2439.5,2439.0,4.10002692]
[1750842045424,4.09937374,2439.4,2438.9,4.10012075]
[1750842046121,4.09955793,2439.3,2438.8,4.10028607]
[1750842046336,1.6214,2439.1,2438.6,0.55]
[1750842046627,1.6214,2439.1,2438.8,4.10036017]
[1750842046925,1.6214,2439.1,2438.9,4.10013268]
[1750842047496,1.6214,2439.1,2438.8,4.10029947]
[1750842047992,10.0,2439.2,2438.5,2.8196]
[1750842048199,1.6249,2439.5,2439.1,4.09977592]
[1750842048398,11.6249,2439.5,2439.3,4.09952615]
[1750842048724,11.6249,2439.5,2439.4,4.09936869]
[1750842048893,10.0,2439.6,2439.4,4.09936869]
[1750842049094,10.0,2439.6,2439.5,4.09920065]
[1750842049295,10.0,2439.6,2439.4,4.09927652]
[1750842049527,10.0,2439.6,2439.5,4.09920065]
[1750842049725,10.0,2439.6,2439.4,4.09927646]
[1750842049930,10.0,2439.6,2438.9,4.65005061]
[1750842050126,10.0,2439.6,2439.4,4.09928326]
[1750842050429,10.0,2439.6,2439.5,4.09920065]
[1750842050819,11.6294,2439.7,2439.1,4.0998729]
[1750842051018,1.6294,2439.7,2439.5,4.09911196]
[1750842051326,6.991,2439.9,2439.8,4.09868078]
[1750842051524,1.6289,2440.1,2439.6,4.09903262]
[1750842051525,1.6289,2440.1,2439.7,4.09878737]
[1750842051731,18.6199,2440.1,2439.4,3.2670732]
[1750842051909,18.6199,2440.1,2439.4,4.0037342]
[1750842052109,22.71811493,2440.1,2439.4,0.736661]
[1750842052603,4.09855705,2439.9,2439.4,0.736661]
[1750842052800,4.098945,2439.7,2439.1,4.09979276]
[1750842052994,1.5784,2439.7,2439.2,0.55]
[1750842053199,22.66201599,2439.9,2439.3,4.09952997]
[1750842053542,15.67701599,2439.9,2439.3,4.09952997]
[1750842053720,4.09876754,2439.8,2439.3,4.09952997]
[1750842053916,4.09888946,2439.7,2439.3,0.87493542]
[1750842054127,4.09888946,2439.7,2439.2,4.09964448]
[1750842055131,4.09913461,2439.6,2439.1,4.09985557]
[1750842055419,4.09913461,2439.6,2439.0,0.46500506]
[1750842055618,1.5849,2439.6,2438.8,5.97531519]
[1750842055822,4.09928658,2439.5,2439.1,4.09986746]
[1750842056009,5.68394624,2439.6,2439.2,4.0997019]
[1750842056222,5.68394624,2439.6,2439.1,4.09977804]
[1750842056607,4.09924488,2439.5,2439.0,4.09996838]
[1750842057835,4.09939392,2439.4,2438.9,4.10014292]
[1750842058538,4.09929201,2439.5,2438.9,4.10014292]
[1750842058734,4.09937526,2439.4,2439.0,4.09995715]
[1750842059335,4.09955893,2439.3,2438.8,4.10026292]
[1750842059836,4.09955893,2439.3,2438.9,4.10019739]
[1750842060136,4.09955893,2439.3,2438.8,4.10030207]
[1750842060302,4.09974906,2439.2,2438.7,4.1004393]
[1750842060506,1.6261,2439.1,2438.7,4.1004393]
[1750842061152,5.72598645,2439.1,2438.6,4.10061848]
[1750842061505,1.6261,2439.1,2438.7,4.10053631]
[1750842061711,1.6261,2439.1,2438.6,0.55]
[1750842062016,5.72604845,2439.1,2438.6,4.65062497]
[1750842062227,1.6261,2439.1,2438.6,0.55]
[1750842062551,1.6261,2439.1,2438.7,4.10044269]
[1750842062711,5.72597775,2439.1,2438.6,4.6506224]
[1750842064642,1.6261,2439.1,2438.5,0.55]
[1750842064866,11.6261,2439.1,2438.5,0.55]
[1750842065147,18.99476644,2439.1,2438.6,4.10068171]
[1750842065342,18.99476644,2439.1,2438.5,4.65088008]
[1750842065343,14.89479002,2439.1,2438.3,4.10113706]
[1750842065651,4.10023953,2438.9,2438.4,4.10092171]
[1750842066447,15.68791108,2439.0,2438.5,4.10074058]
[1750842066642,15.68791108,2439.0,2438.5,4.10079943]
[1750842066841,17.99354619,2439.0,2438.5,4.10079943]
[1750842067621,8.5358,2439.0,2438.7,4.10043993]
[1750842067819,8.5358,2439.0,2438.8,4.10037416]
[1750842068428,8.5358,2439.0,2438.7,4.10045507]
[1750842068639,1.5878,2439.0,2438.7,4.10045507]
[1750842069452,1.5878,2439.0,2438.8,4.10035288]
[1750842070142,1.5878,2439.0,2438.7,4.10045012]
[1750842070751,1.5878,2439.0,2438.8,4.10037058]
[1750842071151,1.5878,2439.0,2438.7,4.10045155]
[1750842071950,1.5878,2439.0,2438.6,4.1006182]
[1750842072120,1.5878,2439.0,2438.6,4.10063565]
[1750842073052,5.6878622,2439.0,2438.6,4.10063565]
[1750842073353,1.5878,2439.0,2438.5,4.10088154]
[1750842073658,1.5878,2439.0,2438.6,4.10070827]
[1750842073857,0.56876989,2438.9,2438.6,4.10070827]
[1750842074353,1.5878,2439.0,2438.7,4.10046367]
[1750842076962,11.5878,2439.0,2438.6,4.1006363]
[1750842077453,11.5878,2439.0,2438.7,4.10053597]
[1750842077651,11.5878,2439.0,2438.6,4.10064187]
[1750842077854,11.5171,2438.9,2438.1,0.55]
[1750842078034,1.5171,2438.9,2438.5,4.10079603]
[1750842078236,3.07880458,2438.9,2438.6,4.10062643]
[1750842079221,1.5899,2438.8,2438.4,4.10088344]
[1750842079660,1.5899,2438.8,2438.5,4.10087483]
[1750842080349,1.5899,2438.8,2438.4,4.10097325]
[1750842080546,1.5899,2438.8,2438.5,4.10085683]
[1750842081666,1.5899,2438.8,2438.4,4.10096016]
[1750842081972,3.37875544,2438.8,2438.4,4.10096016]
[1750842082765,3.37875544,2438.8,2438.5,4.10087682]
[1750842083548,1.5899,2438.8,2438.5,4.10087682]
[1750842084271,1.5899,2438.8,2438.4,4.10095723]
[1750842084468,12.22698095,2438.8,2438.3,4.10111026]
[1750842084668,4.10057983,2438.7,2438.2,4.10129566]
[1750842084850,1.6009,2438.6,2438.2,4.10129566]
[1750842085742,1.6009,2438.6,2438.3,4.10119859]
[1750842086467,1.6009,2438.6,2438.2,4.10132593]
[1750842087458,1.6009,2438.6,2438.3,4.10120863]
[1750842088677,1.6009,2438.6,2438.2,4.10132684]
[1750842089184,1.6009,2438.6,2438.3,4.10113717]
[1750842090374,1.6009,2438.6,2437.9,8.753]
[1750842090682,1.6009,2438.6,2438.4,4.10097045]
[1750842093605,1.6009,2438.6,2438.0,0.9303]
[1750842093777,1.6009,2438.6,2438.2,4.1012959]
[1750842094082,1.6009,2438.6,2438.1,4.1015225]
[1750842094268,1.6009,2438.6,2438.1,4.1014962]
[1750842094269,4.23476498,2438.6,2438.1,4.1014962]
[1750842094585,8.33554755,2438.6,2438.1,4.1014962]
[1750842096197,4.23476498,2438.6,2438.2,4.10131674]
[1750842097261,8.33550799,2438.6,2438.2,4.10131674]
[1750842097489,4.23476498,2438.6,2438.2,4.10137293]
[1750842097690,1.6009,2438.6,2437.8,9.285]
[1750842097895,1.6009,2438.6,2438.4,4.10089766]
[1750842098096,1.6009,2438.6,2438.5,4.10088168]
[1750842098496,1.6009,2438.6,2438.3,4.10114423]
[1750842098868,1.6009,2438.6,2438.4,4.10089783]
[1750842099070,11.5913,2438.8,2438.5,4.10088168]
[1750842099398,1.5913,2438.8,2438.6,4.10065841]
[1750842099699,1.5913,2439.0,2438.6,4.10065841]
[1750842100193,1.5913,2439.0,2438.8,4.10030162]
[1750842101002,1.5913,2439.0,2438.6,4.1006189]
[1750842101170,1.5913,2439.0,2438.7,4.10049653]
[1750842101477,1.5913,2439.0,2438.6,4.10063623]
[1750842102197,1.5913,2439.0,2438.7,4.10052285]
[1750842102601,15.54552112,2439.5,2439.0,4.09990177]
[1750842103470,15.54552112,2439.5,2439.1,4.09986895]
[1750842103872,15.54552112,2439.5,2438.9,4.10016645]
[1750842104203,15.54552112,2439.5,2439.0,4.100041]
[1750842105402,11.4462,2439.5,2438.7,4.10043228]
[1750842105574,11.4462,2439.5,2439.1,4.09979484]
[1750842105775,11.4462,2439.5,2439.2,4.09968271]
[1750842106402,1.4462,2439.5,2439.0,4.100041]
[1750842106592,1.4462,2439.5,2439.4,4.09936869]
[1750842107410,1.4842,2440.0,2439.8,4.09864852]
[1750842107610,2.325538,2440.0,2439.7,4.09880588]
[1750842107775,2.325538,2440.0,2439.6,4.09896879]
[1750842107776,11.4842,2440.0,2439.6,4.09847467]
[1750842107977,1.4842,2440.0,2439.4,4.09934093]
[1750842108187,1.4842,2440.0,2439.9,4.09852862]
[1750842108412,11.4842,2440.0,2439.9,4.09852862]
[1750842108618,11.4842,2440.0,2439.2,4.64959287]
[1750842108797,11.4842,2440.0,2439.7,4.09875097]
[1750842111208,0.2166867,2440.2,2439.5,4.099148]
[1750842111414,0.2166867,2440.2,2439.4,0.55]
[1750842111578,10.2166867,2440.2,2439.8,4.09869422]
[1750842111783,12.44860962,2440.2,2439.8,4.09869422]
[1750842112423,12.44860962,2440.2,2439.4,0.55]
[1750842112424,6.53667759,2440.0,2439.5,1.854]
[1750842112720,6.53667759,2440.0,2439.5,5.95308193]
[1750842112721,1.4846,2439.9,2439.5,5.95308193]
[1750842112891,1.4846,2439.9,2439.6,4.09901236]
[1750842113212,1.4846,2439.9,2439.7,4.09883427]
[1750842113381,1.4846,2439.9,2439.5,4.09905062]
[1750842113582,12.44860962,2440.2,2439.8,4.09856275]
[1750842113583,18.98528721,2440.2,2439.8,4.09856275]
[1750842113781,1.4396,2440.1,2439.8,4.09856275]
[1750842114811,1.4396,2440.1,2439.8,4.09857708]
[1750842114996,1.4396,2440.1,2439.7,4.09879776]
[1750842115202,1.4396,2440.1,2439.8,4.09869661]
[1750842115710,1.4396,2440.1,2439.3,0.87494403]
[1750842115910,1.3775,2439.8,2439.5,4.09911035]
[1750842116307,1.3775,2439.8,2439.4,4.09928801]
[1750842116602,1.3775,2439.8,2438.8,10.41004323]
[1750842116911,5.579925,2439.5,2439.0,4.09993408]
[1750842117415,7.87887759,2439.3,2438.8,4.10022766]
[1750842117606,11.97847029,2439.3,2438.8,4.10022766]
[1750842117806,7.87887759,2439.3,2438.9,4.10020391]
[1750842118396,11.97846161,2439.3,2438.8,4.10033211]
[1750842118591,7.87887759,2439.3,2438.7,4.1005146]
[1750842118814,1.3422,2439.3,2438.7,5.38239683]
[1750842119191,1.3422,2439.3,2438.7,4.10054537]
[1750842119514,1.3422,2439.3,2439.1,4.09971462]
[1750842119724,1.3422,2439.3,2439.2,4.09970482]
[1750842119926,11.4134,2439.6,2439.2,4.09970482]
[1750842120095,6.60535135,2440.1,2439.3,0.55]
[1750842120096,3.92039643,2440.1,2439.3,0.55]
[1750842120288,1.4134,2440.1,2439.7,4.09885809]
[1750842120487,1.4134,2440.1,2439.9,4.09849921]
[1750842120822,1.4134,2440.1,2439.5,4.64904114]
[1750842121486,1.4134,2440.1,2439.7,4.09878712]
[1750842121984,11.4134,2440.1,2439.7,4.09878712]
[1750842122183,20.6350385,2440.0,2439.5,4.09911995]
[1750842122386,14.09836091,2440.0,2439.5,4.09911995]
[1750842122615,1.479,2439.9,2439.6,4.09902937]
[1750842123120,1.479,2439.9,2439.3,4.09951201]
[1750842123301,4.09872445,2439.8,2439.3,4.09945039]
[1750842123499,7.25799777,2439.9,2439.4,4.0993673]
[1750842123897,4.09873207,2439.8,2439.3,4.09947589]
[1750842124215,7.25799948,2439.9,2439.4,4.09936045]
[1750842124823,4.09869662,2439.8,2439.4,4.09936045]
[1750842124999,2.13564351,2439.8,2439.4,4.09936045]
[1750842125200,2.13564351,2439.8,2439.0,8.717]
[1750842125400,3.15937643,2439.9,2439.1,4.0998729]
[1750842125595,3.15937643,2439.9,2439.4,4.09920585]
[1750842125808,5.54288162,2439.8,2439.3,4.09946657]
[1750842126122,1.4441,2439.8,2439.4,4.09936813]
[1750842126505,1.4441,2439.8,2439.5,4.09919087]
[1750842126906,1.4441,2439.8,2439.4,4.09925325]
[1750842127224,1.4441,2439.8,2439.5,4.09919117]
[1750842127792,1.4441,2439.8,2439.4,4.09928304]
[1750842128418,1.4441,2439.8,2439.5,4.09917723]
[1750842129316,1.4441,2439.8,2439.4,4.09930128]
[1750842129702,1.4441,2439.8,2439.5,4.09917431]
[1750842130004,1.4441,2439.8,2439.4,4.09928798]
[1750842130209,1.4441,2439.8,2439.5,4.09912768]
[1750842132038,3.85379308,2439.8,2439.4,4.09932575]
[1750842132393,11.3422,2439.7,2438.8,0.55]
[1750842132600,1.3422,2439.6,2439.2,4.09970436]
[1750842133828,5.44125506,2439.6,2439.1,4.09980809]
[1750842134027,4.09927668,2439.5,2439.0,4.09996381]
[1750842134232,2.26463317,2439.4,2439.0,4.10001973]
[1750842134830,2.26463317,2439.4,2439.1,4.0998468]
[1750842135729,1.4448,2439.4,2439.3,4.09953675]
[1750842136099,1.4448,2439.4,2439.0,4.09992794]
[1750842136298,1.4448,2439.4,2438.9,4.10020911]
[1750842136508,1.4448,2439.4,2439.0,4.09999307]
[1750842136999,1.4448,2439.4,2438.3,14.10106198]
[1750842137253,1.4448,2439.4,2439.2,4.09968995]
[1750842139633,1.4448,2439.4,2439.1,4.09977615]
[1750842139813,1.4448,2439.4,2439.2,4.09969155]
[1750842141739,1.4448,2439.4,2439.1,4.09979846]
[1750842141942,1.4448,2439.4,2439.1,4.09978812]
[1750842142139,1.4448,2439.4,2439.1,4.09973615]
[1750842142446,1.4448,2439.4,2439.2,4.09967453]
[1750842142824,1.4448,2439.4,2439.1,4.09979146]
[1750842143339,4.09910977,2439.6,2439.1,4.09979146]
[1750842143540,4.09951001,2439.4,2438.8,8.716]
[1750842143743,4.09951001,2439.4,2438.7,4.10046983]
[1750842143744,5.54676349,2439.3,2438.7,4.10046983]
[1750842143949,1.4471,2439.3,2438.7,10.97346983]
[1750842144149,1.4471,2439.3,2438.9,4.10006821]
[1750842144347,3.00174792,2439.3,2438.9,4.10006821]
[1750842144520,3.00174792,2439.3,2438.7,4.10044559]
[1750842144521,7.10137042,2439.3,2438.8,4.10029254]
[1750842144922,3.00174792,2439.3,2438.9,4.10018443]
[1750842145222,3.00174792,2439.3,2439.0,4.10000549]
[1750842145628,3.00174792,2439.3,2438.9,4.10011599]
[1750842146172,3.00174792,2439.3,2439.0,4.10002591]
[1750842146347,1.4471,2439.3,2439.0,4.10002591]
[1750842146847,1.4471,2439.3,2438.9,4.10011452]
[1750842147147,5.54672299,2439.3,2438.8,4.10032542]
[1750842147848,4.09971331,2439.2,2438.7,4.10046417]
[1750842148145,5.54670736,2439.3,2438.8,4.10036446]
[1750842148338,7.51131696,2439.3,2438.8,4.10036446]
[1750842148539,4.09971198,2439.2,2438.7,4.10045298]
[1750842148843,7.5113315,2439.3,2438.8,4.10037542]
[1750842149453,4.09973659,2439.2,2438.7,4.10046129]
[1750842149621,7.51131804,2439.3,2438.8,4.10035982]
[1750842150116,5.26081456,2439.2,2438.7,4.10045883]
[1750842150522,1.4346,2439.1,2438.6,4.10064107]
[1750842150717,5.53456177,2439.1,2438.6,4.10070091]
[1750842150917,1.4346,2439.1,2438.7,4.10050559]
[1750842151353,4.10008469,2439.0,2438.5,4.10079659]
[1750842151944,5.5175731,2439.0,2438.5,4.10079659]
[1750842152326,1.4174,2439.0,2438.6,4.10066089]
[1750842152541,1.4174,2439.0,2438.7,4.10054199]
[1750842152742,1.4174,2439.0,2438.5,4.10073189]
[1750842153756,1.4174,2439.0,2438.4,10.97296747]
[1750842154127,1.4174,2439.0,2438.7,4.10053145]
[1750842154327,3.08522291,2439.0,2438.8,4.10035507]
[1750842154528,3.08522291,2439.0,2438.9,4.10020911]
[1750842154934,3.08522291,2439.0,2438.8,4.10030273]
[1750842155453,3.08522291,2439.0,2438.9,4.10020911]
[1750842157850,1.3745,2438.9,2438.5,4.10079782]
[1750842158055,11.3745,2438.8,2438.4,4.10096373]
[1750842158622,11.3745,2438.8,2438.3,12.81312589]
[1750842159353,11.3745,2438.8,2438.4,4.10103179]
[1750842159546,15.47489012,2438.8,2438.3,12.81316523]
[1750842159750,15.47489012,2438.8,2438.3,4.10116523]
[1750842160131,4.10073907,2438.6,2438.0,4.10165361]
[1750842160349,4.10073907,2438.6,2438.1,6.35362686]